[Event "Titled Tuesday Blitz April 12 Early 2022"]
[White "Zlatin, Alexander"]
[Black "Hansen, Eric"]
[WhiteFideId "2810549"]
[BlackFideId "2606771"]
[WhiteElo "2228"]
[BlackElo "2568"]
[Result "0-1"]
[Round "07"]
[TimeControl "180+1"]
[Date "2022.04.13"]
[WhiteClock "0:00:01"]
[BlackClock "0:01:37"]

1. d4 {[%clk 0:02:51]}  Nf6 {[%clk 0:03:00]} 2. Nc3 {[%clk 0:02:51]}  d5 {[%clk 0:03:00]} 3. Bf4 {[%clk 0:02:51]}  a6 {[%clk 0:03:00]} 4. e3 {[%clk 0:02:51]}  c5 {[%clk 0:03:00]} 5. dxc5 {[%clk 0:02:52]}  e6 {[%clk 0:03:00]} 6. Nf3 {[%clk 0:02:52]}  Bxc5 {[%clk 0:02:59]} 7. Bd3 {[%clk 0:02:52]}  Nc6 {[%clk 0:02:59]} 8. O-O {[%clk 0:02:52]}  Qe7 {[%clk 0:02:59]} 9. Ne5 {[%clk 0:02:50]}  Bd6 {[%clk 0:02:58]} 10. Nxc6 {[%clk 0:02:38]}  bxc6 {[%clk 0:02:59]} 11. Bxd6 {[%clk 0:02:35]}  Qxd6 {[%clk 0:02:59]} 12. e4 {[%clk 0:02:31]}  d4 {[%clk 0:02:52]} 13. Ne2 {[%clk 0:02:23]}  Ng4 {[%clk 0:02:50]} 14. g3 {[%clk 0:01:50]}  e5 {[%clk 0:02:50]} 15. h3 {[%clk 0:01:40]}  Nh6 {[%clk 0:02:47]} 16. Kg2 {[%clk 0:01:39]}  f6 {[%clk 0:02:45]} 17. f4 {[%clk 0:01:36]}  c5 {[%clk 0:02:41]} 18. Bc4 {[%clk 0:01:30]}  Bb7 {[%clk 0:02:41]} 19. Qd3 {[%clk 0:00:58]}  f5 {[%clk 0:02:41]} 20. Qb3 {[%clk 0:00:35]}  Bxe4+ {[%clk 0:02:36]} 21. Kg1 {[%clk 0:00:34]}  Rb8 {[%clk 0:02:23]} 22. Qa4+ {[%clk 0:00:32]}  Ke7 {[%clk 0:02:24]} 23. fxe5 {[%clk 0:00:26]}  Qxe5 {[%clk 0:02:24]} 24. Nf4 {[%clk 0:00:18]}  Rb4 {[%clk 0:02:18]} 25. Qxa6 {[%clk 0:00:14]}  Ra8 {[%clk 0:02:18]} 26. Qe6+ {[%clk 0:00:09]}  Qxe6 {[%clk 0:02:18]} 27. Bxe6 {[%clk 0:00:10]}  g5 {[%clk 0:02:19]} 28. Nd5+ {[%clk 0:00:09]}  Kxe6 {[%clk 0:02:19]} 29. Nxb4 {[%clk 0:00:09]}  cxb4 {[%clk 0:02:20]} 30. Kf2 {[%clk 0:00:02]}  Bxc2 {[%clk 0:02:19]} 31. Rac1 {[%clk 0:00:02]}  d3 {[%clk 0:02:18]} 32. Ke3 {[%clk 0:00:03]}  Rxa2 {[%clk 0:02:18]} 33. Kd2 {[%clk 0:00:03]}  Rxb2 {[%clk 0:02:16]} 34. Rfe1+ {[%clk 0:00:04]}  Kf6 {[%clk 0:02:16]} 35. Ra1 {[%clk 0:00:04]}  Nf7 {[%clk 0:01:37]} 36. Ra6+ {[%clk 0:00:04]}  Kg7 {[%clk 0:01:38]} 37. Re7 {[%clk 0:00:02]}  Rb1 {[%clk 0:01:37]} 38. Ke3 {[%clk 0:00:01]}  Re1+ {[%clk 0:01:37]} 0-1


[Site "https://www.chess.com"]

[Event "Titled Tuesday Blitz April 12 Early 2022"]
[White "parintele_chess"]
[Black "Antonio, Jorge Carlos"]
[BlackFideId "113190"]
[WhiteElo "2250"]
[BlackElo "2247"]
[Result "1-0"]
[Round "07"]
[TimeControl "180+1"]
[Date "2022.04.13"]
[WhiteClock "0:00:04"]
[BlackClock "0:00:08"]

1. d4 {[%clk 0:03:00]}  d6 {[%clk 0:02:59]} 2. e4 {[%clk 0:02:59]}  g6 {[%clk 0:02:59]} 3. Nc3 {[%clk 0:02:57]}  Bg7 {[%clk 0:02:59]} 4. Bg5 {[%clk 0:02:54]}  Nf6 {[%clk 0:03:00]} 5. e5 {[%clk 0:02:53]}  Nfd7 {[%clk 0:02:55]} 6. e6 {[%clk 0:02:38]}  fxe6 {[%clk 0:02:52]} 7. Qe2 {[%clk 0:02:21]}  Nf6 {[%clk 0:02:51]} 8. O-O-O {[%clk 0:02:21]}  Nc6 {[%clk 0:02:43]} 9. Nf3 {[%clk 0:02:16]}  O-O {[%clk 0:02:39]} 10. h4 {[%clk 0:02:12]}  h6 {[%clk 0:02:35]} 11. Be3 {[%clk 0:02:10]}  Ng4 {[%clk 0:02:31]} 12. Nh2 {[%clk 0:02:03]}  Nxe3 {[%clk 0:02:25]} 13. fxe3 {[%clk 0:02:03]}  e5 {[%clk 0:02:21]} 14. Qd3 {[%clk 0:01:51]}  exd4 {[%clk 0:02:15]} 15. exd4 {[%clk 0:01:38]}  Bf5 {[%clk 0:02:07]} 16. Qc4+ {[%clk 0:01:38]}  Kh8 {[%clk 0:02:02]} 17. g4 {[%clk 0:01:38]}  Bd7 {[%clk 0:01:56]} 18. Qd3 {[%clk 0:01:36]}  Nxd4 {[%clk 0:01:52]} 19. Qxg6 {[%clk 0:01:35]}  Qe8 {[%clk 0:01:48]} 20. Qe4 {[%clk 0:01:32]}  Bc6 {[%clk 0:01:44]} 21. Nd5 {[%clk 0:01:31]}  e6 {[%clk 0:01:42]} 22. Bd3 {[%clk 0:01:31]}  Nf5 {[%clk 0:01:30]} 23. Nxc7 {[%clk 0:00:56]}  Bxe4 {[%clk 0:01:26]} 24. Nxe8 {[%clk 0:00:56]}  Bxh1 {[%clk 0:01:24]} 25. Nxg7 {[%clk 0:00:40]}  Nxg7 {[%clk 0:01:19]} 26. Rxh1 {[%clk 0:00:40]}  e5 {[%clk 0:01:14]} 27. g5 {[%clk 0:00:40]}  d5 {[%clk 0:01:03]} 28. gxh6 {[%clk 0:00:39]}  Nf5 {[%clk 0:01:01]} 29. Ng4 {[%clk 0:00:33]}  e4 {[%clk 0:00:59]} 30. Be2 {[%clk 0:00:33]}  Kh7 {[%clk 0:00:56]} 31. Rg1 {[%clk 0:00:31]}  Nxh6 {[%clk 0:00:54]} 32. Ne5 {[%clk 0:00:31]}  Rae8 {[%clk 0:00:47]} 33. Ng6 {[%clk 0:00:26]}  Rf2 {[%clk 0:00:44]} 34. Bh5 {[%clk 0:00:22]}  Rc8 {[%clk 0:00:34]} 35. Bd1 {[%clk 0:00:18]}  Nf5 {[%clk 0:00:30]} 36. Ne5 {[%clk 0:00:08]}  Ne3 {[%clk 0:00:28]} 37. Bg4 {[%clk 0:00:06]}  Nxc2 {[%clk 0:00:24]} 38. Kb1 {[%clk 0:00:07]}  Ne3 {[%clk 0:00:21]} 39. Bxc8 {[%clk 0:00:07]}  d4 {[%clk 0:00:18]} 40. Bxb7 {[%clk 0:00:05]}  Rf4 {[%clk 0:00:13]} 41. Ng6 {[%clk 0:00:03]}  Rf1+ {[%clk 0:00:06]} 42. Rxf1 {[%clk 0:00:03]}  Nxf1 {[%clk 0:00:06]} 43. Bxe4 {[%clk 0:00:04]}  Nd2+ {[%clk 0:00:04]} 44. Kc2 {[%clk 0:00:03]}  Nxe4 {[%clk 0:00:04]} 45. Nf4 {[%clk 0:00:04]}  a5 {[%clk 0:00:01]} 46. Kd3 {[%clk 0:00:04]}  Nd6 {[%clk 0:00:01]} 47. Kxd4 {[%clk 0:00:04]}  Nb5+ {[%clk 0:00:02]} 48. Kc5 {[%clk 0:00:04]}  Nc7 {[%clk 0:00:03]} 49. Kb6 {[%clk 0:00:04]}  Ne8 {[%clk 0:00:04]} 50. Kxa5 {[%clk 0:00:05]}  Nf6 {[%clk 0:00:05]} 51. b4 {[%clk 0:00:05]}  Kg7 {[%clk 0:00:06]} 52. b5 {[%clk 0:00:05]}  Ne4 {[%clk 0:00:07]} 53. b6 {[%clk 0:00:05]}  Kf6 {[%clk 0:00:07]} 54. b7 {[%clk 0:00:05]}  Kf5 {[%clk 0:00:08]} 55. b8=Q {[%clk 0:00:04]} 1-0


[Site "https://www.chess.com"]

[Event "Titled Tuesday Blitz April 12 Early 2022"]
[White "Aitbayev, Aslan"]
[Black "Stribuk, Artiom"]
[WhiteFideId "13704613"]
[BlackFideId "13515659"]
[WhiteElo "2385"]
[BlackElo "2259"]
[Result "0-1"]
[Round "08"]
[TimeControl "180+1"]
[Date "2022.04.12"]
[WhiteClock "0:00:04"]
[BlackClock "0:00:34"]

1. e4 {[%clk 0:03:00]}  c5 {[%clk 0:02:59]} 2. Nf3 {[%clk 0:02:56]}  Nc6 {[%clk 0:02:59]} 3. Bb5 {[%clk 0:02:55]}  e6 {[%clk 0:02:59]} 4. O-O {[%clk 0:02:55]}  Nge7 {[%clk 0:03:00]} 5. Re1 {[%clk 0:02:54]}  a6 {[%clk 0:02:57]} 6. Bf1 {[%clk 0:02:54]}  b6 {[%clk 0:02:55]} 7. c3 {[%clk 0:02:53]}  d5 {[%clk 0:02:54]} 8. exd5 {[%clk 0:02:51]}  Nxd5 {[%clk 0:02:55]} 9. d4 {[%clk 0:02:51]}  cxd4 {[%clk 0:02:56]} 10. Nxd4 {[%clk 0:02:48]}  Bb7 {[%clk 0:02:57]} 11. Nxc6 {[%clk 0:02:38]}  Bxc6 {[%clk 0:02:58]} 12. c4 {[%clk 0:02:38]}  Nf6 {[%clk 0:02:44]} 13. Nc3 {[%clk 0:02:36]}  Bd6 {[%clk 0:02:35]} 14. Be3 {[%clk 0:02:30]}  Qc7 {[%clk 0:02:24]} 15. h3 {[%clk 0:02:23]}  O-O {[%clk 0:02:00]} 16. Qc2 {[%clk 0:02:19]}  Rfd8 {[%clk 0:01:52]} 17. a3 {[%clk 0:02:19]}  a5 {[%clk 0:01:40]} 18. Rad1 {[%clk 0:02:14]}  h6 {[%clk 0:01:36]} 19. Bd4 {[%clk 0:01:50]}  Bc5 {[%clk 0:01:15]} 20. Be5 {[%clk 0:01:15]}  Qe7 {[%clk 0:01:09]} 21. Rxd8+ {[%clk 0:01:11]}  Rxd8 {[%clk 0:01:09]} 22. Rd1 {[%clk 0:01:11]}  Rd7 {[%clk 0:00:57]} 23. Rxd7 {[%clk 0:00:55]}  Nxd7 {[%clk 0:00:58]} 24. Bg3 {[%clk 0:00:50]}  Qg5 {[%clk 0:00:49]} 25. Kh2 {[%clk 0:00:34]}  Nf6 {[%clk 0:00:48]} 26. Bd3 {[%clk 0:00:13]}  h5 {[%clk 0:00:45]} 27. h4 {[%clk 0:00:09]}  Ng4+ {[%clk 0:00:41]} 28. Kh3 {[%clk 0:00:07]}  Nxf2+ {[%clk 0:00:35]} 29. Bxf2 {[%clk 0:00:04]}  Qxg2# {[%clk 0:00:34]} 0-1


[Site "https://www.chess.com"]

[Event "Titled Tuesday Blitz April 12 Early 2022"]
[White "Antonio, Jorge Carlos"]
[Black "Gu, Xiaobing"]
[WhiteFideId "113190"]
[BlackFideId "8602611"]
[WhiteElo "2247"]
[BlackElo "2174"]
[Result "1-0"]
[Round "08"]
[TimeControl "180+1"]
[Date "2022.04.13"]
[WhiteClock "0:00:51"]
[BlackClock "0:00:23"]

1. e4 {[%clk 0:03:00]}  c5 {[%clk 0:02:58]} 2. f4 {[%clk 0:03:00]}  d5 {[%clk 0:02:55]} 3. e5 {[%clk 0:02:59]}  g6 {[%clk 0:02:51]} 4. Nf3 {[%clk 0:02:59]}  Bg7 {[%clk 0:02:51]} 5. Nc3 {[%clk 0:02:54]}  Nc6 {[%clk 0:02:39]} 6. Bb5 {[%clk 0:02:50]}  h5 {[%clk 0:02:27]} 7. d4 {[%clk 0:02:46]}  c4 {[%clk 0:02:24]} 8. b3 {[%clk 0:02:43]}  cxb3 {[%clk 0:02:19]} 9. axb3 {[%clk 0:02:40]}  Nh6 {[%clk 0:02:18]} 10. O-O {[%clk 0:02:34]}  O-O {[%clk 0:02:17]} 11. Bxc6 {[%clk 0:02:31]}  bxc6 {[%clk 0:02:17]} 12. h3 {[%clk 0:02:29]}  Nf5 {[%clk 0:02:14]} 13. Ne2 {[%clk 0:02:17]}  h4 {[%clk 0:02:12]} 14. Qe1 {[%clk 0:02:14]}  Qb6 {[%clk 0:01:28]} 15. Ba3 {[%clk 0:02:09]}  Ne3 {[%clk 0:01:24]} 16. Qxh4 {[%clk 0:02:04]}  Nxf1 {[%clk 0:01:21]} 17. Ng5 {[%clk 0:01:58]}  Re8 {[%clk 0:01:21]} 18. Rxf1 {[%clk 0:01:49]}  Bf5 {[%clk 0:01:20]} 19. g4 {[%clk 0:01:45]}  Bxc2 {[%clk 0:01:19]} 20. Qh7+ {[%clk 0:01:41]}  Kf8 {[%clk 0:01:19]} 21. f5 {[%clk 0:01:34]}  Qxb3 {[%clk 0:01:15]} 22. Ne6+ {[%clk 0:01:30]}  fxe6 {[%clk 0:01:11]} 23. fxg6+ {[%clk 0:01:26]}  Bf5 {[%clk 0:01:09]} 24. gxf5 {[%clk 0:01:22]}  Qe3+ {[%clk 0:01:04]} 25. Rf2 {[%clk 0:01:11]}  Qg5+ {[%clk 0:01:02]} 26. Kf1 {[%clk 0:01:00]}  exf5 {[%clk 0:00:47]} 27. Bc1 {[%clk 0:00:55]}  f4 {[%clk 0:00:23]} 28. Rxf4+ {[%clk 0:00:51]}  Qf5 {[%clk 0:00:23]} 29. Rxf5+ {[%clk 0:00:51]} 1-0


[Site "https://www.chess.com"]

[Event "Titled Tuesday Blitz April 12 Early 2022"]
[White "Avalos Parra, Joao"]
[Black "De Arruda, Leandro Formes"]
[WhiteFideId "3402541"]
[BlackFideId "22722009"]
[WhiteElo "2173"]
[BlackElo "1852"]
[Result "0-1"]
[Round "08"]
[TimeControl "180+1"]
[Date "2022.04.13"]
[WhiteClock "0:00:12"]
[BlackClock "0:00:18"]

1. d4 {[%clk 0:02:07]}  d5 {[%clk 0:03:00]} 2. c4 {[%clk 0:01:23]}  e6 {[%clk 0:03:00]} 3. Nf3 {[%clk 0:00:56]}  Nf6 {[%clk 0:02:59]} 4. g3 {[%clk 0:00:56]}  Be7 {[%clk 0:02:59]} 5. Bg2 {[%clk 0:00:56]}  O-O {[%clk 0:02:59]} 6. O-O {[%clk 0:00:57]}  Ne4 {[%clk 0:02:58]} 7. Qc2 {[%clk 0:00:55]}  f5 {[%clk 0:02:58]} 8. Ne5 {[%clk 0:00:55]}  Nd7 {[%clk 0:02:56]} 9. Nxd7 {[%clk 0:00:54]}  Bxd7 {[%clk 0:02:57]} 10. f3 {[%clk 0:00:55]}  Nf6 {[%clk 0:02:52]} 11. b3 {[%clk 0:00:55]}  Bc6 {[%clk 0:02:50]} 12. Bb2 {[%clk 0:00:55]}  a5 {[%clk 0:02:42]} 13. a3 {[%clk 0:00:50]}  b5 {[%clk 0:02:35]} 14. c5 {[%clk 0:00:46]}  Qe8 {[%clk 0:02:24]} 15. Nd2 {[%clk 0:00:46]}  Qg6 {[%clk 0:02:23]} 16. Rae1 {[%clk 0:00:46]}  f4 {[%clk 0:02:17]} 17. Qxg6 {[%clk 0:00:45]}  hxg6 {[%clk 0:02:18]} 18. gxf4 {[%clk 0:00:45]}  Nh5 {[%clk 0:02:15]} 19. e3 {[%clk 0:00:45]}  Bh4 {[%clk 0:02:13]} 20. Re2 {[%clk 0:00:44]}  g5 {[%clk 0:02:02]} 21. fxg5 {[%clk 0:00:43]}  Bxg5 {[%clk 0:02:03]} 22. f4 {[%clk 0:00:43]}  Bh6 {[%clk 0:02:00]} 23. Bh3 {[%clk 0:00:43]}  Rae8 {[%clk 0:01:59]} 24. Rg2 {[%clk 0:00:44]}  Nf6 {[%clk 0:01:51]} 25. Kh1 {[%clk 0:00:41]}  b4 {[%clk 0:01:44]} 26. a4 {[%clk 0:00:40]}  Bb7 {[%clk 0:01:43]} 27. Bc1 {[%clk 0:00:34]}  Ba6 {[%clk 0:01:43]} 28. Rfg1 {[%clk 0:00:34]}  Bd3 {[%clk 0:01:42]} 29. Bg4 {[%clk 0:00:22]}  Ne4 {[%clk 0:01:39]} 30. Bf3 {[%clk 0:00:15]}  Nc3 {[%clk 0:01:29]} 31. Nf1 {[%clk 0:00:09]}  Ne4 {[%clk 0:01:07]} 32. Ng3 {[%clk 0:00:08]}  Nf6 {[%clk 0:01:04]} 33. Nh5 {[%clk 0:00:08]}  Nxh5 {[%clk 0:01:00]} 34. Bxh5 {[%clk 0:00:09]}  Re7 {[%clk 0:00:59]} 35. Bf3 {[%clk 0:00:09]}  Kh8 {[%clk 0:00:55]} 36. Bd2 {[%clk 0:00:10]}  c6 {[%clk 0:00:53]} 37. Be1 {[%clk 0:00:10]}  Ref7 {[%clk 0:00:51]} 38. Bh4 {[%clk 0:00:10]}  Rf5 {[%clk 0:00:48]} 39. Rg6 {[%clk 0:00:07]}  Re8 {[%clk 0:00:46]} 40. R6g4 {[%clk 0:00:04]}  Rf7 {[%clk 0:00:43]} 41. R4g2 {[%clk 0:00:05]}  Ref8 {[%clk 0:00:42]} 42. Bg5 {[%clk 0:00:04]}  Kh7 {[%clk 0:00:39]} 43. Bxh6 {[%clk 0:00:05]}  gxh6 {[%clk 0:00:40]} 44. Rg3 {[%clk 0:00:04]}  Bf5 {[%clk 0:00:38]} 45. h4 {[%clk 0:00:04]}  Bc2 {[%clk 0:00:33]} 46. Kh2 {[%clk 0:00:05]}  Bf5 {[%clk 0:00:33]} 47. Bh5 {[%clk 0:00:04]}  Re7 {[%clk 0:00:33]} 48. Bg6+ {[%clk 0:00:04]}  Kh8 {[%clk 0:00:31]} 49. Bxf5 {[%clk 0:00:04]}  exf5 {[%clk 0:00:32]} 50. Rf3 {[%clk 0:00:02]}  Rfe8 {[%clk 0:00:32]} 51. Rgg3 {[%clk 0:00:03]}  Kh7 {[%clk 0:00:31]} 52. Kg2 {[%clk 0:00:04]}  Re6 {[%clk 0:00:31]} 53. Kf2 {[%clk 0:00:04]}  R6e7 {[%clk 0:00:31]} 54. h5 {[%clk 0:00:05]}  Re6 {[%clk 0:00:31]} 55. Ke2 {[%clk 0:00:04]}  Re4 {[%clk 0:00:31]} 56. Kd3 {[%clk 0:00:05]}  R4e7 {[%clk 0:00:31]} 57. Rg6 {[%clk 0:00:05]}  Rc8 {[%clk 0:00:31]} 58. Rfg3 {[%clk 0:00:06]}  Rec7 {[%clk 0:00:31]} 59. Rf6 {[%clk 0:00:06]}  Rb8 {[%clk 0:00:30]} 60. Rgg6 {[%clk 0:00:07]}  Rbc8 {[%clk 0:00:29]} 61. Rxh6+ {[%clk 0:00:08]}  Kg7 {[%clk 0:00:29]} 62. Rhg6+ {[%clk 0:00:08]}  Kh7 {[%clk 0:00:30]} 63. Rg5 {[%clk 0:00:09]}  Re7 {[%clk 0:00:28]} 64. Rgxf5 {[%clk 0:00:10]}  Kg7 {[%clk 0:00:27]} 65. Rg6+ {[%clk 0:00:10]}  Kh7 {[%clk 0:00:27]} 66. Re5 {[%clk 0:00:10]}  Rf7 {[%clk 0:00:27]} 67. f5 {[%clk 0:00:10]}  Rcf8 {[%clk 0:00:27]} 68. e4 {[%clk 0:00:09]}  dxe4+ {[%clk 0:00:27]} 69. Kxe4 {[%clk 0:00:10]}  Rd8 {[%clk 0:00:26]} 70. Rge6 {[%clk 0:00:09]}  Kg8 {[%clk 0:00:25]} 71. Re7 {[%clk 0:00:10]}  Rf6 {[%clk 0:00:25]} 72. R5e6 {[%clk 0:00:10]}  Rff8 {[%clk 0:00:25]} 73. Ke5 {[%clk 0:00:11]}  Rd5+ {[%clk 0:00:24]} 74. Ke4 {[%clk 0:00:11]}  Rdxf5 {[%clk 0:00:23]} 75. Re8 {[%clk 0:00:12]}  Rf4+ {[%clk 0:00:23]} 76. Kd3 {[%clk 0:00:12]}  Rf3+ {[%clk 0:00:23]} 77. Kd2 {[%clk 0:00:12]}  Rf2+ {[%clk 0:00:23]} 78. Kd3 {[%clk 0:00:11]}  Rf3+ {[%clk 0:00:23]} 79. Ke4 {[%clk 0:00:12]}  Rf4+ {[%clk 0:00:23]} 80. Ke5 {[%clk 0:00:13]}  Rf5+ {[%clk 0:00:23]} 81. Kd6 {[%clk 0:00:13]}  Rd5+ {[%clk 0:00:23]} 82. Kxc6 {[%clk 0:00:13]}  Rd8 {[%clk 0:00:21]} 83. Rxf8+ {[%clk 0:00:13]}  Kxf8 {[%clk 0:00:21]} 84. d5 {[%clk 0:00:13]}  Kf7 {[%clk 0:00:22]} 85. Rd6 {[%clk 0:00:14]}  Rc8+ {[%clk 0:00:22]} 86. Kb5 {[%clk 0:00:14]}  Ke7 {[%clk 0:00:22]} 87. Kxa5 {[%clk 0:00:14]}  Rxc5+ {[%clk 0:00:22]} 88. Kb6 {[%clk 0:00:14]}  Kxd6 {[%clk 0:00:21]} 89. a5 {[%clk 0:00:14]}  Rxd5 {[%clk 0:00:20]} 90. a6 {[%clk 0:00:14]}  Rxh5 {[%clk 0:00:18]} 91. a7 {[%clk 0:00:14]}  Rh8 {[%clk 0:00:17]} 92. Kb7 {[%clk 0:00:14]}  Kc5 {[%clk 0:00:16]} 93. a8=Q {[%clk 0:00:12]}  Rxa8 {[%clk 0:00:16]} 94. Kxa8 {[%clk 0:00:12]}  Kd4 {[%clk 0:00:17]} 95. Ka7 {[%clk 0:00:12]}  Kc3 {[%clk 0:00:18]} 0-1


[Site "https://www.chess.com"]

[Event "Titled Tuesday Blitz April 12 Early 2022"]
[White "Ayushh, Ravikumar"]
[Black "Gatterer, Florian"]
[WhiteFideId "35039482"]
[BlackFideId "811688"]
[WhiteElo "1441"]
[BlackElo "2218"]
[Result "0-1"]
[Round "08"]
[TimeControl "180+1"]
[Date "2022.04.13"]
[WhiteClock "0:00:19"]
[BlackClock "0:00:24"]

1. e4 {[%clk 0:01:13]}  e5 {[%clk 0:02:57]} 2. Nf3 {[%clk 0:01:13]}  Nc6 {[%clk 0:02:57]} 3. Bb5 {[%clk 0:01:13]}  a6 {[%clk 0:02:56]} 4. Ba4 {[%clk 0:01:14]}  Nf6 {[%clk 0:02:56]} 5. O-O {[%clk 0:01:15]}  b5 {[%clk 0:02:54]} 6. Bb3 {[%clk 0:01:14]}  Bc5 {[%clk 0:02:54]} 7. c3 {[%clk 0:01:13]}  d6 {[%clk 0:02:54]} 8. d4 {[%clk 0:01:13]}  Bb6 {[%clk 0:02:54]} 9. Bc2 {[%clk 0:01:11]}  O-O {[%clk 0:02:47]} 10. a4 {[%clk 0:01:10]}  Rb8 {[%clk 0:02:46]} 11. d5 {[%clk 0:01:05]}  Ne7 {[%clk 0:02:43]} 12. axb5 {[%clk 0:01:00]}  axb5 {[%clk 0:02:42]} 13. Nbd2 {[%clk 0:01:01]}  Ng6 {[%clk 0:02:36]} 14. Re1 {[%clk 0:00:58]}  Ng4 {[%clk 0:02:34]} 15. Rf1 {[%clk 0:00:58]}  Nf4 {[%clk 0:02:25]} 16. h3 {[%clk 0:00:57]}  Nxf2 {[%clk 0:02:19]} 17. Rxf2 {[%clk 0:00:56]}  Bxh3 {[%clk 0:02:18]} 18. Nf1 {[%clk 0:00:50]}  Bxf2+ {[%clk 0:01:59]} 19. Kxf2 {[%clk 0:00:51]}  Bxg2 {[%clk 0:01:47]} 20. Bxf4 {[%clk 0:00:49]}  Bxf3 {[%clk 0:01:25]} 21. Qxf3 {[%clk 0:00:48]}  exf4 {[%clk 0:01:25]} 22. Qxf4 {[%clk 0:00:48]}  Ra8 {[%clk 0:01:18]} 23. Rxa8 {[%clk 0:00:43]}  Qxa8 {[%clk 0:01:17]} 24. e5 {[%clk 0:00:44]}  Qxd5 {[%clk 0:01:09]} 25. exd6 {[%clk 0:00:43]}  Qxd6 {[%clk 0:01:06]} 26. Qe4 {[%clk 0:00:32]}  Qf6+ {[%clk 0:01:01]} 27. Kg2 {[%clk 0:00:26]}  g6 {[%clk 0:00:59]} 28. Ne3 {[%clk 0:00:25]}  h5 {[%clk 0:00:59]} 29. Nd5 {[%clk 0:00:24]}  Qd6 {[%clk 0:00:55]} 30. Qd4 {[%clk 0:00:22]}  f5 {[%clk 0:00:40]} 31. Kf3 {[%clk 0:00:20]}  Kh7 {[%clk 0:00:37]} 32. b3 {[%clk 0:00:16]}  c6 {[%clk 0:00:37]} 33. Nf4 {[%clk 0:00:15]}  Qxd4 {[%clk 0:00:36]} 34. cxd4 {[%clk 0:00:16]}  Rf6 {[%clk 0:00:30]} 35. Bd3 {[%clk 0:00:15]}  Kh6 {[%clk 0:00:30]} 36. d5 {[%clk 0:00:15]}  cxd5 {[%clk 0:00:29]} 37. Nxd5 {[%clk 0:00:16]}  Rd6 {[%clk 0:00:28]} 38. Nb4 {[%clk 0:00:15]}  Rd4 {[%clk 0:00:27]} 39. Bxb5 {[%clk 0:00:13]}  Rxb4 {[%clk 0:00:27]} 40. Bc4 {[%clk 0:00:14]}  Kg5 {[%clk 0:00:26]} 41. Ke3 {[%clk 0:00:14]}  h4 {[%clk 0:00:25]} 42. Kd4 {[%clk 0:00:15]}  Rb8 {[%clk 0:00:25]} 43. Kc5 {[%clk 0:00:16]}  Kf4 {[%clk 0:00:25]} 44. b4 {[%clk 0:00:16]}  g5 {[%clk 0:00:25]} 45. b5 {[%clk 0:00:16]}  g4 {[%clk 0:00:25]} 46. b6 {[%clk 0:00:17]}  h3 {[%clk 0:00:23]} 47. Bd5 {[%clk 0:00:18]}  Rxb6 {[%clk 0:00:21]} 48. Kxb6 {[%clk 0:00:18]}  g3 {[%clk 0:00:22]} 49. Kc5 {[%clk 0:00:18]}  g2 {[%clk 0:00:23]} 50. Kd4 {[%clk 0:00:19]}  g1=Q+ {[%clk 0:00:22]} 51. Kc4 {[%clk 0:00:19]}  Qg3 {[%clk 0:00:23]} 52. Kc5 {[%clk 0:00:20]}  Qe3+ {[%clk 0:00:23]} 53. Kc6 {[%clk 0:00:19]}  Qe5 {[%clk 0:00:23]} 54. Bh1 {[%clk 0:00:19]}  Qc3+ {[%clk 0:00:23]} 55. Kd7 {[%clk 0:00:19]}  Qe1 {[%clk 0:00:23]} 56. Ba8 {[%clk 0:00:18]}  h2 {[%clk 0:00:23]} 57. Kd6 {[%clk 0:00:18]}  h1=Q {[%clk 0:00:24]} 58. Bxh1 {[%clk 0:00:18]}  Qxh1 {[%clk 0:00:24]} 59. Ke6 {[%clk 0:00:19]}  Qe4+ {[%clk 0:00:25]} 60. Kf7 {[%clk 0:00:20]}  Ke3 {[%clk 0:00:25]} 61. Kg7 {[%clk 0:00:20]}  f4 {[%clk 0:00:26]} 62. Kh8 {[%clk 0:00:21]}  f3 {[%clk 0:00:26]} 63. Kg7 {[%clk 0:00:22]}  f2 {[%clk 0:00:27]} 64. Kh8 {[%clk 0:00:23]}  f1=Q {[%clk 0:00:26]} 65. Kg7 {[%clk 0:00:22]}  Qe7+ {[%clk 0:00:25]} 66. Kh6 {[%clk 0:00:19]}  Qff6+ {[%clk 0:00:24]} 67. Kh5 {[%clk 0:00:19]}  Qh7+ {[%clk 0:00:24]} 0-1


[Site "https://www.chess.com"]

[Event "Titled Tuesday Blitz April 12 Early 2022"]
[White "Belenkaya, Dina"]
[Black "Hua, Lefong"]
[WhiteFideId "24142654"]
[BlackFideId "2602253"]
[WhiteElo "2196"]
[BlackElo "2571"]
[Result "0-1"]
[Round "08"]
[TimeControl "180+1"]
[Date "2022.04.13"]
[WhiteClock "0:00:01"]
[BlackClock "0:01:02"]

1. e4 {[%clk 0:03:00]}  c5 {[%clk 0:02:59]} 2. Nc3 {[%clk 0:02:59]}  g6 {[%clk 0:03:00]} 3. g3 {[%clk 0:02:58]}  Bg7 {[%clk 0:03:00]} 4. Bg2 {[%clk 0:02:59]}  Nc6 {[%clk 0:03:01]} 5. Nf3 {[%clk 0:02:57]}  d6 {[%clk 0:02:59]} 6. d3 {[%clk 0:02:57]}  e6 {[%clk 0:02:57]} 7. Bg5 {[%clk 0:02:56]}  Nge7 {[%clk 0:02:57]} 8. Qd2 {[%clk 0:02:56]}  h6 {[%clk 0:02:57]} 9. Be3 {[%clk 0:02:56]}  Nd4 {[%clk 0:02:57]} 10. O-O {[%clk 0:02:55]}  Rb8 {[%clk 0:02:55]} 11. Ne1 {[%clk 0:02:55]}  b5 {[%clk 0:02:55]} 12. Nd1 {[%clk 0:02:54]}  b4 {[%clk 0:02:55]} 13. c3 {[%clk 0:02:39]}  bxc3 {[%clk 0:02:54]} 14. bxc3 {[%clk 0:02:39]}  Ndc6 {[%clk 0:02:54]} 15. f4 {[%clk 0:02:33]}  f5 {[%clk 0:02:50]} 16. Nf3 {[%clk 0:02:29]}  O-O {[%clk 0:02:49]} 17. Nh4 {[%clk 0:02:28]}  Kh7 {[%clk 0:02:49]} 18. Rc1 {[%clk 0:02:11]}  Qb6 {[%clk 0:02:44]} 19. Rf2 {[%clk 0:01:54]}  d5 {[%clk 0:02:32]} 20. exd5 {[%clk 0:01:33]}  Nxd5 {[%clk 0:02:32]} 21. Re2 {[%clk 0:01:23]}  Nxe3 {[%clk 0:02:23]} 22. Nxe3 {[%clk 0:01:22]}  Qc7 {[%clk 0:02:21]} 23. Nc4 {[%clk 0:01:22]}  Rd8 {[%clk 0:02:20]} 24. Nf3 {[%clk 0:01:21]}  Ba6 {[%clk 0:02:17]} 25. Qe3 {[%clk 0:01:14]}  Bxc4 {[%clk 0:02:14]} 26. dxc4 {[%clk 0:01:15]}  Rd6 {[%clk 0:02:12]} 27. Qxc5 {[%clk 0:01:14]}  Qb6 {[%clk 0:02:04]} 28. Qxb6 {[%clk 0:01:04]}  axb6 {[%clk 0:02:05]} 29. Re3 {[%clk 0:00:46]}  Kg8 {[%clk 0:01:55]} 30. Rb1 {[%clk 0:00:29]}  Kf7 {[%clk 0:01:51]} 31. Kf2 {[%clk 0:00:22]}  Ra8 {[%clk 0:01:43]} 32. Rb2 {[%clk 0:00:20]}  Ra4 {[%clk 0:01:40]} 33. Nd2 {[%clk 0:00:17]}  Na5 {[%clk 0:01:34]} 34. Bf1 {[%clk 0:00:17]}  Rc6 {[%clk 0:01:28]} 35. Rd3 {[%clk 0:00:10]}  Bf8 {[%clk 0:01:22]} 36. Rd7+ {[%clk 0:00:10]}  Kf6 {[%clk 0:01:23]} 37. Ke1 {[%clk 0:00:02]}  Ra3 {[%clk 0:01:08]} 38. Rc2 {[%clk 0:00:01]}  e5 {[%clk 0:01:02]} 0-1


[Site "https://www.chess.com"]